fUSD/lending_fUSD_20240630
["ID","MTS","AMOUNT","RATE_DAILY","PERIOD"]
[330693857,1719713438352,-500.0,0.00013698,3]
[330693858,1719713438362,-500.0,0.00013698,3]
[330693859,1719713438372,-500.0,0.00013698,3]
[330693860,1719713438381,-500.0,0.00013698,3]
[330693861,1719713438392,-500.0,0.00013698,3]
[330693862,1719713438402,-500.0,0.00013698,3]
[330693863,1719713438413,-500.0,0.00013698,3]
[330693864,1719713438423,-500.0,0.00013698,3]
[330693865,1719713438433,-506.2378341,0.00013698,3]
[330693866,1719713438443,-500.0,0.00013698,3]
[330693867,1719713438452,-608.32,0.00013698,3]
[330693868,1719713438462,-500.0,0.00013698,3]
[330693869,1719713438472,-762.03,0.00013698,3]
[330693870,1719713438482,-500.0,0.00013698,3]
[330693872,1719713438491,-507.74873163,0.00013698,3]
[330693874,1719713438500,-990.15,0.00013698,3]
[330693876,1719713438511,-500.0,0.00013698,3]
[330693878,1719713438521,-500.58252331,0.00013698,2]
[330693879,1719713438531,-988.16,0.00013698,3]
[330693882,1719713438541,-500.0,0.00013698,3]
[330693884,1719713438551,-500.0,0.00013698,3]
[330693886,1719713438560,-500.0,0.00013698,3]
[330693887,1719713438569,-500.0,0.00013698,3]
[330693889,1719713438579,-508.87335619,0.00013698,3]
[330693892,1719713438589,-500.0,0.00013698,3]
[330693894,1719713438599,-689.74,0.00013698,3]
[330693896,1719713438609,-516.522216,0.00013698,3]
[330693898,1719713438619,-500.0,0.00013698,3]
[330693900,1719713438628,-500.0,0.00013698,3]
[330693902,1719713438640,-500.0,0.00013698,3]
[330693904,1719713438650,-509.83881275,0.00013698,3]
[330693906,1719713438660,-500.0,0.00013698,3]
[330693908,1719713438671,-190.53591064,0.00013698,3]
[330693914,1719713438729,-612.56,0.00013698,3]
[330693921,1719713438782,-232.48408936,0.00013698,3]
[330693923,1719713438792,-40.46117324,0.00013698,3]
[330693925,1719713438804,-465.36229204,0.00013698,3]
[330693927,1719713438814,-434.51406509,0.00013698,3]
[330693929,1719713438824,-500.0,0.00013698,3]
[330693931,1719713438834,-500.0,0.00013698,3]
[330693933,1719713438843,-512.76441198,0.00013698,3]
[330693935,1719713438852,-500.0,0.00013698,3]
[330693937,1719713438862,-1112.82,0.00013698,3]
[330693939,1719713438872,-1066.45,0.00013698,3]
[330693941,1719713438881,-782.64,0.00013698,3]
[330693943,1719713438892,-500.0,0.00013698,3]
[330693945,1719713438901,-500.0,0.00013698,3]
[330693947,1719713438911,-500.0,0.00013698,3]
[330693949,1719713438920,-500.0,0.00013698,3]
[330693951,1719713438930,-697.5,0.00013698,3]
[330693953,1719713438939,-507.16666192,0.00013698,3]
[330693955,1719713438951,-545.57,0.00013698,3]
[330693957,1719713438961,-500.0,0.00013698,3]
[330693959,1719713438970,-418.00312223,0.00013698,3]
[330693961,1719713438979,-500.0,0.00013698,3]
[330693963,1719713438989,-500.0,0.00013698,3]
[330693965,1719713438998,-500.0,0.00013698,3]
[330693967,1719713439008,-517.39,0.00013698,3]
[330693969,1719713439018,-500.0,0.00013698,3]
[330693971,1719713439028,-513.47778365,0.00013698,3]
[330693973,1719713439038,-500.0,0.00013698,3]
[330693975,1719713439048,-510.89594599,0.00013698,3]
[330693977,1719713439059,-500.0,0.00013698,3]
[330693979,1719713439069,-500.0,0.00013698,3]
[330693981,1719713439079,-500.0,0.00013698,3]
[330693983,1719713439089,-500.0,0.00013698,3]
[330693985,1719713439099,-500.0,0.00013698,3]
[330693987,1719713439109,-516.48171215,0.00013698,3]
[330693989,1719713439119,-500.0,0.00013698,3]
[330693991,1719713439129,-500.0,0.00013698,3]
[330693993,1719713439139,-500.0,0.00013698,3]
[330693995,1719713439149,-500.0,0.00013698,3]
[330693997,1719713439160,-500.0,0.00013698,3]
[330693999,1719713439170,-726.58,0.00013698,3]
[330694001,1719713439179,-500.0,0.00013698,3]
[330694003,1719713439189,-500.0,0.00013698,3]
[330694005,1719713439199,-500.0,0.00013698,3]
[330694007,1719713439209,-1425.2,0.00013698,3]
[330694009,1719713439221,-516.74067443,0.00013698,3]
[330694011,1719713439231,-500.0,0.00013698,3]
[330694013,1719713439241,-500.0,0.00013698,3]
[330694014,1719713439251,-500.0,0.00013698,3]
[330694016,1719713439267,-500.0,0.00013698,3]
[330694019,1719713439278,-504.50190959,0.00013698,3]
[330694021,1719713439288,-503.29572724,0.00013698,3]
[330694022,1719713439298,-500.0,0.00013698,3]
[330694025,1719713439312,-500.0,0.00013698,3]
[330694026,1719713439322,-500.0,0.00013698,3]
[330694027,1719713439332,-508.21716146,0.00013698,3]
[330694028,1719713439344,-500.0,0.00013698,3]
[330694029,1719713439354,-728.19,0.00013698,3]
[330694030,1719713439365,-500.0,0.00013698,3]
[330694031,1719713439375,-500.0,0.00013698,3]
[330694032,1719713439386,-500.0,0.00013698,3]
[330694033,1719713439396,-500.0,0.00013698,3]
[330694034,1719713439406,-500.0,0.00013698,3]
[330694035,1719713439416,-500.0,0.00013698,3]
[330694036,1719713439426,-512.80767131,0.00013698,3]
[330694038,1719713439436,-500.0,0.00013698,3]
[330694040,1719713439446,-940.02,0.00013698,3]
[330694042,1719713439456,-500.0,0.00013698,3]
[330694044,1719713439466,-500.0,0.00013698,3]
[330694046,1719713439476,-500.0,0.00013698,3]
[330694048,1719713439486,-500.0,0.00013698,3]
[330694050,1719713439496,-500.0,0.00013698,3]
[330694052,1719713439505,-500.0,0.00013698,3]
[330694054,1719713439514,-500.0,0.00013698,3]
[330694056,1719713439524,-500.0,0.00013698,3]
[330694058,1719713439534,-500.0,0.00013698,3]
[330694060,1719713439544,-500.0,0.00013698,3]
[330694062,1719713439556,-500.0,0.00013698,3]
[330694064,1719713439566,-662.79,0.00013698,3]
[330694067,1719713439576,-620.87,0.00013698,3]
[330694069,1719713439586,-500.0,0.00013698,3]
[330694070,1719713439596,-500.0,0.00013698,3]
[330694072,1719713439606,-500.0,0.00013698,3]
[330694074,1719713439616,-500.0,0.00013698,3]
[330694076,1719713439626,-500.0,0.00013698,3]
[330694078,1719713439636,-500.0,0.00013698,3]
[330694080,1719713439645,-509.79609507,0.00013698,3]
[330694082,1719713439655,-281.00997465,0.00013698,3]
[330694084,1719713439664,-500.0,0.00013698,3]
[330694086,1719713439674,-500.0,0.00013698,3]
[330694088,1719713439683,-500.0,0.00013698,3]
[330694090,1719713439693,-500.0,0.00013698,3]
[330694092,1719713439702,-507.32295365,0.00013698,3]
[330694094,1719713439712,-500.0,0.00013698,3]
[330694096,1719713439722,-500.0,0.00013698,3]
[330694098,1719713439732,-500.0,0.00013698,3]
[330694100,1719713439744,-500.0,0.00013698,3]
[330694102,1719713439754,-509.24759105,0.00013698,3]
[330694104,1719713439764,-500.0,0.00013698,3]
[330694106,1719713439774,-505.31712208,0.00013698,3]
[330694108,1719713439784,-500.0,0.00013698,3]
[330694110,1719713439794,-503.20511498,0.00013698,3]
[330694112,1719713439804,-338.02058722,0.00013698,3]
[330694114,1719713439813,-500.0,0.00013698,3]
[330694116,1719713439824,-197.80366004,0.00013698,3]
[330694118,1719713439834,-500.0,0.00013698,3]
[330694120,1719713439844,-512.06139519,0.00013698,3]
[330694122,1719713439854,-500.0,0.00013698,3]
[330694124,1719713439863,-529.63,0.00013698,3]
[330694126,1719713439873,-500.0,0.00013698,3]
[330694128,1719713439883,-500.0,0.00013698,3]
[330694130,1719713439894,-500.0,0.00013698,3]
[330694132,1719713439904,-500.0,0.00013698,3]
[330694134,1719713439913,-500.0,0.00013698,3]
[330694136,1719713439923,-500.0,0.00013698,3]
[330694138,1719713439933,-500.0,0.00013698,3]
[330694140,1719713439944,-500.0,0.00013698,3]
[330694142,1719713439954,-573.41,0.00013698,3]
[330694144,1719713439964,-500.0,0.00013698,2]
[330694146,1719713439974,-500.0,0.00013698,3]
[330694148,1719713439984,-511.01867339,0.00013698,3]
[330694150,1719713439993,-522.68859269,0.00013698,3]
[330694152,1719713440003,-513.36028411,0.00013698,3]
[330694154,1719713440014,-500.0,0.00013698,3]
[330694156,1719713440024,-500.0,0.00013698,3]
[330694158,1719713440034,-500.0,0.00013698,3]
[330694161,1719713440043,-500.0,0.00013698,3]
[330694163,1719713440053,-500.0,0.00013698,3]
[330694165,1719713440064,-500.0,0.00013698,3]
[330694167,1719713440073,-500.0,0.00013698,3]
[330694170,1719713440083,-500.0,0.00013698,3]
[330694173,1719713440093,-500.0,0.00013698,3]
[330694175,1719713440103,-1129.7,0.00013698,3]
[330694177,1719713440113,-500.0,0.00013698,3]
[330694179,1719713440124,-516.34923335,0.00013698,3]
[330694181,1719713440133,-504.17031155,0.00013698,3]
[330694183,1719713440144,-507.87092754,0.00013698,3]
[330694185,1719713440154,-500.0,0.00013698,3]
[330694187,1719713440164,-500.0,0.00013698,3]
[330694189,1719713440175,-609.82,0.00013698,3]
[330694191,1719713440185,-500.0,0.00013698,3]
[330694193,1719713440195,-500.0,0.00013698,3]
[330694195,1719713440204,-500.0,0.00013698,3]
[330694197,1719713440215,-500.0,0.00013698,3]
[330694199,1719713440225,-510.07470266,0.00013698,3]
[330694201,1719713440235,-174.00880155,0.00013698,3]
[330694203,1719713440245,-500.0,0.00013698,3]
[330694205,1719713440257,-507.14357972,0.00013698,3]
[330694207,1719713440270,-500.0,0.00013698,3]
[330694209,1719713440280,-500.0,0.00013698,3]
[330694211,1719713440290,-500.0,0.00013698,3]
[330694213,1719713440299,-506.51922495,0.00013698,3]
[330694215,1719713440311,-506.21410006,0.00013698,3]
[330694217,1719713440321,-500.0,0.00013698,3]
[330694219,1719713440330,-500.0,0.00013698,3]
[330694221,1719713440343,-509.54289397,0.00013698,3]
[330694223,1719713440352,-500.0,0.00013698,3]
[330694225,1719713440362,-500.0,0.00013698,3]
[330694227,1719713440372,-1089.73,0.00013698,3]
[330694229,1719713440382,-500.0,0.00013698,3]
[330694231,1719713440392,-999.53,0.00013698,3]
[330694233,1719713440402,-500.0,0.00013698,3]
[330694235,1719713440411,-500.0,0.00013698,3]
[330694237,1719713440421,-500.0,0.00013698,3]
[330694239,1719713440430,-500.0,0.00013698,3]
[330694241,1719713440440,-155.41318686,0.00013698,3]
[330694243,1719713440449,-509.60322276,0.00013698,3]
[330694245,1719713440460,-500.0,0.00013698,3]
[330694247,1719713440469,-372.0275812,0.00013698,3]
[330694249,1719713440479,-500.0,0.00013698,3]
[330694251,1719713440489,-500.0,0.00013698,3]
[330694253,1719713440498,-500.0,0.00013698,3]
[330694255,1719713440509,-365.11275383,0.00013698,3]
[330694257,1719713440518,-270.46631607,0.00013698,3]
[330694259,1719713440528,-500.0,0.00013698,3]
[330694261,1719713440537,-500.0,0.00013698,3]
[330694263,1719713440547,-500.0,0.00013698,3]
[330694265,1719713440556,-500.0,0.00013698,3]
[330694267,1719713440566,-500.0,0.00013698,3]
[330694269,1719713440576,-507.21980966,0.00013698,3]
[330694271,1719713440586,-500.0,0.00013698,3]
[330694273,1719713440596,-500.0,0.00013698,3]
[330694275,1719713440606,-500.0,0.00013698,3]
[330694277,1719713440616,-512.03672515,0.00013698,3]
[330694279,1719713440626,-500.0,0.00013698,3]
[330694281,1719713440637,-500.0,0.00013698,3]
[330694283,1719713440649,-500.0,0.00013698,3]
[330694285,1719713440659,-500.0,0.00013698,3]
[330694288,1719713440669,-500.0,0.00013698,3]
[330694290,1719713440678,-1330.32,0.00013698,3]
[330694291,1719713440687,-509.80772196,0.00013698,3]
[330694293,1719713440697,-500.0,0.00013698,3]
[330694295,1719713440706,-500.0,0.00013698,3]
[330694297,1719713440715,-500.0,0.00013698,3]
[330694299,1719713440725,-508.85026003,0.00013698,3]
[330694301,1719713440735,-500.0,0.00013698,3]
[330694303,1719713440744,-168.7,0.00013698,3]
[330694305,1719713440754,-500.0,0.00013698,3]
[330694307,1719713440763,-500.0,0.00013698,3]
[330694309,1719713440773,-500.0,0.00013698,3]
[330694311,1719713440783,-500.0,0.00013698,3]
[330694313,1719713440792,-500.0,0.00013698,3]
[330694315,1719713440802,-500.0,0.00013698,3]
[330694317,1719713440811,-817.7,0.00013698,3]
[330694319,1719713440821,-500.0,0.00013698,3]
[330694321,1719713440830,-500.0,0.00013698,3]
[330694323,1719713440839,-500.0,0.00013698,3]
[330694325,1719713440848,-500.0,0.00013698,3]
[330694327,1719713440858,-500.0,0.00013698,3]
[330694329,1719713440868,-500.0,0.00013698,3]
[330694331,1719713440877,-500.0,0.00013698,3]
[330694332,1719713440887,-570.09,0.00013698,3]
[330694333,1719713440897,-500.0,0.00013698,3]
[330694334,1719713440906,-500.0,0.00013698,3]
[330694335,1719713440915,-500.0,0.00013698,3]
[330694336,1719713440929,-500.0,0.00013698,3]
[330694337,1719713440940,-500.0,0.00013698,3]
[330694338,1719713440949,-500.0,0.00013698,3]
[330694340,1719713440959,-500.0,0.00013698,3]
[330694342,1719713440968,-500.0,0.00013698,3]
[330694344,1719713440984,-500.0,0.00013698,3]
[330694347,1719713440998,-500.0,0.00013698,3]
[330694349,1719713441008,-500.0,0.00013698,3]
[330694351,1719713441019,-500.0,0.00013698,3]
[330694353,1719713441028,-500.0,0.00013698,3]
[330694355,1719713441038,-500.0,0.00013698,3]
[330694357,1719713441047,-165.71500663,0.00013698,3]
[330694359,1719713441057,-500.0,0.00013698,3]
[330694361,1719713441067,-500.0,0.00013698,3]
[330694363,1719713441077,-500.0,0.00013698,3]
[330694365,1719713441087,-500.0,0.00013698,3]
[330694367,1719713441096,-500.0,0.00013698,3]
[330694369,1719713441106,-500.0,0.00013698,3]
[330694371,1719713441115,-1126.83,0.00013698,3]
[330694373,1719713441125,-796.64,0.00013698,3]
[330694375,1719713441135,-500.0,0.00013698,3]
[330694377,1719713441146,-500.0,0.00013698,3]
[330694379,1719713441156,-525.4237174,0.00013698,3]
[330694381,1719713441165,-500.0,0.00013698,3]
[330694384,1719713441175,-500.0,0.00013698,3]
[330694386,1719713441184,-723.39,0.00013698,3]
[330694388,1719713441194,-500.0,0.00013698,3]
[330694390,1719713441205,-500.0,0.00013698,3]
[330694392,1719713441215,-500.0,0.00013698,3]
[330694394,1719713441224,-500.0,0.00013698,3]
[330694396,1719713441234,-500.0,0.00013698,3]
[330694398,1719713441243,-500.0,0.00013698,3]
[330694400,1719713441253,-500.0,0.00013698,3]
[330694402,1719713441268,-1491.18,0.00013698,3]
[330694404,1719713441278,-500.0,0.00013698,3]
[330694406,1719713441287,-500.0,0.00013698,3]
[330694408,1719713441298,-505.90751235,0.00013698,3]
[330694410,1719713441309,-506.30047364,0.00013698,3]
[330694412,1719713441318,-505.50926443,0.00013698,3]
[330694414,1719713441328,-500.0,0.00013698,3]
[330694416,1719713441339,-500.0,0.00013698,3]
[330694418,1719713441349,-500.0,0.00013698,3]
[330694420,1719713441359,-500.0,0.00013698,3]
[330694422,1719713441368,-500.0,0.00013698,3]
[330694424,1719713441377,-311.42553069,0.00013698,3]
[330694426,1719713441388,-500.0,0.00013698,3]
[330694428,1719713441397,-500.0,0.00013698,3]
[330694430,1719713441406,-500.0,0.00013698,3]
[330694432,1719713441416,-500.0,0.00013698,3]
[330694434,1719713441425,-500.0,0.00013698,3]
[330694436,1719713441436,-500.0,0.00013698,3]
[330694438,1719713441446,-504.91187254,0.00013698,3]
[330694440,1719713441456,-1306.33,0.00013698,3]
[330694442,1719713441466,-500.0,0.00013698,3]
[330694444,1719713441476,-500.0,0.00013698,3]
[330694446,1719713441486,-500.0,0.00013698,3]
[330694448,1719713441496,-500.0,0.00013698,3]
[330694451,1719713441510,-500.0,0.00013698,3]
[330694453,1719713441521,-500.0,0.00013698,3]
[330694455,1719713441531,-500.0,0.00013698,3]
[330694457,1719713441541,-500.0,0.00013698,3]
[330694459,1719713441550,-500.0,0.00013698,3]
[330694461,1719713441560,-569.07,0.00013698,3]
[330694463,1719713441570,-1124.31,0.00013698,3]
[330694465,1719713441579,-1297.94,0.00013698,3]
[330694467,1719713441590,-500.0,0.00013698,3]
[330694469,1719713441600,-500.0,0.00013698,3]
[330694471,1719713441611,-505.75350043,0.00013698,3]
[330694506,1719713441935,-500.0,0.00013698,3]
[330694508,1719713441945,-2100.78,0.00013698,3]
[330694510,1719713441955,-500.0,0.00013698,3]
[330694513,1719713441966,-1852.64,0.00013698,3]
[330694515,1719713441976,-500.0,0.00013698,3]
[330694517,1719713441985,-500.0,0.00013698,3]
[330694519,1719713441995,-567.69,0.00013698,3]
[330694521,1719713442004,-500.0,0.00013698,3]
[330694523,1719713442014,-500.0,0.00013698,3]
[330694525,1719713442023,-500.0,0.00013698,3]
[330694527,1719713442033,-500.0,0.00013698,3]
[330694528,1719713442043,-4086.02,0.00013698,3]
[330694531,1719713442053,-670.59,0.00013698,3]
[330694533,1719713442063,-500.0,0.00013698,3]
[330694535,1719713442073,-500.0,0.00013698,3]
[330694537,1719713442083,-557.46,0.00013698,3]
[330694539,1719713442092,-506.57367219,0.00013698,3]
[330694541,1719713442101,-500.0,0.00013698,3]
[330694543,1719713442110,-611.24,0.00013698,3]
[330694545,1719713442120,-788.95,0.00013698,3]
[330694546,1719713442129,-500.0,0.00013698,3]
[330694549,1719713442140,-500.0,0.00013698,3]
[330694551,1719713442150,-705.82,0.00013698,3]
[330694553,1719713442159,-603.09,0.00013698,3]
[330694555,1719713442169,-500.0,0.00013698,3]
[330694557,1719713442178,-500.0,0.00013698,3]
[330694559,1719713442187,-503.32593179,0.00013698,3]
[330694561,1719713442196,-500.0,0.00013698,3]
[330694563,1719713442206,-500.0,0.00013698,3]
[330694565,1719713442216,-500.0,0.00013698,3]
[330694567,1719713442225,-500.0,0.00013698,3]
[330694569,1719713442234,-500.0,0.00013698,3]
[330694571,1719713442244,-346.83336298,0.00013698,3]
[330694573,1719713442253,-500.0,0.00013698,3]
[330694574,1719713442271,-500.0,0.00013698,3]
[330694575,1719713442281,-500.0,0.00013698,3]
[330694576,1719713442291,-500.0,0.00013698,3]
[330694577,1719713442301,-500.0,0.00013698,3]
[330694578,1719713442313,-737.68,0.00013698,3]
[330694579,1719713442322,-500.0,0.00013698,3]
[330694580,1719713442333,-668.74,0.00013698,3]
[330694581,1719713442343,-537.04,0.00013698,3]
[330694583,1719713442353,-830.72,0.00013698,3]
[330694586,1719713442364,-500.0,0.00013698,3]
[330694587,1719713442374,-504.79939779,0.00013698,3]
[330694590,1719713442383,-2096.25,0.00013698,3]
[330694592,1719713442393,-500.0,0.00013698,3]
[330694594,1719713442403,-500.0,0.00013698,3]
[330694596,1719713442412,-546.64,0.00013698,3]
[330694598,1719713442421,-500.0,0.00013698,3]
[330694600,1719713442431,-1119.87,0.00013698,3]
[330694602,1719713442441,-500.0,0.00013698,3]
[330694604,1719713442449,-500.0,0.00013698,3]
[330694606,1719713442459,-500.0,0.00013698,3]
[330694608,1719713442471,-500.0,0.00013698,3]
[330694610,1719713442480,-500.0,0.00013698,3]
[330694612,1719713442489,-500.0,0.00013698,3]
[330694614,1719713442499,-500.0,0.00013698,3]
[330694616,1719713442508,-2459.1,0.00013698,3]
[330694618,1719713442518,-500.0,0.00013698,3]
[330694620,1719713442527,-500.0,0.00013698,3]
[330694622,1719713442537,-500.0,0.00013698,3]
[330694624,1719713442546,-731.04,0.00013698,3]
[330694626,1719713442556,-500.0,0.00013698,3]
[330694628,1719713442565,-500.0,0.00013698,3]
[330694630,1719713442576,-761.95,0.00013698,3]
[330694632,1719713442586,-649.35,0.00013698,3]
[330694634,1719713442595,-604.03,0.00013698,3]
[330694636,1719713442604,-508.24693606,0.00013698,3]
[330694638,1719713442614,-500.0,0.00013698,3]
[330694640,1719713442623,-1804.36,0.00013698,3]
[330694642,1719713442632,-500.0,0.00013698,3]
[330694644,1719713442642,-500.0,0.00013698,3]
[330694646,1719713442651,-500.0,0.00013698,3]
[330694648,1719713442660,-700.64,0.00013698,3]
[330694650,1719713442670,-502.63,0.00013698,3]
[330694652,1719713442679,-500.0,0.00013698,3]
[330694654,1719713442689,-500.0,0.00013698,3]
[330694656,1719713442698,-500.0,0.00013698,3]
[330694658,1719713442708,-500.0,0.00013698,3]
[330694660,1719713442717,-500.0,0.00013698,3]
[330694662,1719713442727,-535.42,0.00013698,3]
[330694664,1719713442737,-571.35,0.00013698,3]
[330694666,1719713442747,-500.0,0.00013698,3]
[330694669,1719713442757,-500.0,0.00013698,3]
[330694671,1719713442767,-500.0,0.00013698,3]
[330694673,1719713442777,-500.0,0.00013698,3]
[330694675,1719713442786,-833.28,0.00013698,3]
[330694677,1719713442796,-500.0,0.00013698,3]
[330694679,1719713442805,-500.0,0.00013698,3]
[330694681,1719713442815,-500.0,0.00013698,3]
[330694683,1719713442825,-673.9,0.00013698,3]
[330694685,1719713442834,-632.48,0.00013698,3]
[330694687,1719713442844,-500.0,0.00013698,3]
[330694690,1719713442854,-570.54,0.00013698,3]
[330694693,1719713442864,-540.86,0.00013698,3]
[330694696,1719713442874,-500.0,0.00013698,3]
[330694699,1719713442884,-531.06563415,0.00013698,3]
[330694702,1719713442893,-523.59,0.00013698,3]
[330694704,1719713442903,-1054.08,0.00013698,3]
[330694706,1719713442913,-500.0,0.00013698,3]
[330694708,1719713442922,-500.0,0.00013698,3]
[330694710,1719713442931,-509.17923928,0.00013698,3]
[330694712,1719713442941,-507.83610424,0.00013698,3]
[330694715,1719713442957,-588.53,0.00013698,3]
[330694718,1719713442970,-500.0,0.00013698,3]
[330694720,1719713442981,-536.74,0.00013698,3]
[330694722,1719713442991,-502.36681368,0.00013698,3]
[330694724,1719713443001,-500.0,0.00013698,3]
[330694726,1719713443012,-894.18,0.00013698,3]
[330694728,1719713443022,-561.23430914,0.00013698,3]
[330694730,1719713443032,-500.0,0.00013698,3]
[330694732,1719713443042,-500.0,0.00013698,3]
[330694735,1719713443053,-500.0,0.00013698,3]
[330694737,1719713443063,-2161.25,0.00013698,3]
[330694739,1719713443074,-500.0,0.00013698,3]
[330694742,1719713443084,-500.0,0.00013698,3]
[330694744,1719713443094,-500.0,0.00013698,3]
[330694746,1719713443104,-500.0,0.00013698,3]
[330694747,1719713443115,-500.0,0.00013698,3]
[330694751,1719713443125,-500.0,0.00013698,3]
[330694754,1719713443136,-1264.65,0.00013698,3]
[330694758,1719713443146,-500.0,0.00013698,3]
[330694762,1719713443156,-534.95547831,0.00013698,3]
[330694765,1719713443166,-503.53,0.00013698,3]
[330694768,1719713443176,-500.0,0.00013698,3]
[330694771,1719713443186,-500.0,0.00013698,3]
[330694774,1719713443196,-500.0,0.00013698,3]
[330694776,1719713443206,-500.0,0.00013698,3]
[330694778,1719713443216,-3169.78,0.00013698,3]
[330694780,1719713443226,-1604.83,0.00013698,3]
[330694782,1719713443236,-500.0,0.00013698,3]
[330694784,1719713443245,-500.0,0.00013698,3]
[330694785,1719713443256,-500.0,0.00013698,3]
[330694788,1719713443271,-898.18,0.00013698,3]
[330694790,1719713443281,-500.0,0.00013698,3]
[330694791,1719713443291,-500.0,0.00013698,3]
[330694793,1719713443303,-1260.3,0.00013698,3]
[330694796,1719713443313,-500.0,0.00013698,3]
[330694797,1719713443324,-1097.53,0.00013698,3]
[330694799,1719713443334,-986.38,0.00013698,3]
[330694802,1719713443347,-500.0,0.00013698,3]
[330694804,1719713443359,-500.0,0.00013698,3]
[330694805,1719713443368,-500.0,0.00013698,3]
[330694808,1719713443379,-500.0,0.00013698,3]
[330694810,1719713443389,-1368.2,0.00013698,3]
[330694812,1719713443400,-774.25,0.00013698,3]
[330694814,1719713443410,-500.0,0.00013698,3]
[330694816,1719713443420,-500.0,0.00013698,3]
[330694818,1719713443430,-626.21,0.00013698,3]
[330694820,1719713443440,-500.0,0.00013698,3]
[330694822,1719713443450,-503.91,0.00013698,3]
[330694824,1719713443460,-500.0,0.00013698,3]
[330694826,1719713443470,-912.41,0.00013698,3]
[330694828,1719713443479,-162.82,0.00013699,2]
[330694830,1719713443490,-2162.31,0.00013699,2]
[330694832,1719713443500,-2751.0,0.00013699,2]
[330694834,1719713443509,-4969.65631503,0.00013699,2]
[330694860,1719713443884,-500.0,0.00013698,3]
[330694861,1719713443895,-5030.34368497,0.00013699,2]
[330694862,1719713443906,-421.36,0.00013699,2]
[330694863,1719713443916,-437.85918029,0.00013708,2]
[330694864,1719713443926,-74208.01723205,0.00013708,2]
[330694865,1719713443937,-47189.75116795,0.00013708,2]
[330694866,1719713443948,-1352.41568506,0.00013708,2]
[330694867,1719713443958,-518.66222,0.0001373,2]
[330694868,1719713443968,-505.90954686,0.00013736,2]
[330694869,1719713443979,-155.25347499,0.00013759,2]
[330694870,1719713443989,-518.66221,0.0001377,2]
[330694871,1719713443998,-16189.39573013,0.0001379,2]
[330694872,1719713444009,-197.41918931,0.00013798,2]
[330694873,1719713444019,-3500.20111636,0.00013799,2]
[330694874,1719713444030,-187.74940676,0.00013807,2]
[330694875,1719713444040,-836.46,0.00013808,3]
[330694876,1719713444050,-555.14,0.00013808,3]
[330694877,1719713444060,-515.33,0.00013808,3]
[330694878,1719713444070,-623.37,0.00013808,3]
[330694879,1719713444080,-506.13,0.00013808,3]
[330694880,1719713444090,-557.56,0.00013808,3]
[330694881,1719713444100,-611.75,0.00013808,3]
[330694882,1719713444110,-976.15,0.00013808,3]
[330694883,1719713444122,-8435.57,0.00013808,3]
[330694885,1719713444133,-585.72,0.00013808,3]
[330694887,1719713444144,-1803.45,0.00013808,3]